bitfinex/quotes_SOLUSD_20241220
["timestamp","ask_amount","ask_price","bid_price","bid_amount"]
[1734701798867,40.26577413,187.92,187.81,40.26577413]
[1734701799383,40.26577413,187.92,187.77,20.0]
[1734701799384,40.26577413,187.88,187.77,40.26577413]
[1734701799749,40.26577413,187.86,187.75,40.26577413]
[1734701800364,40.26577413,187.86,187.77,40.26577413]
[1734701800569,40.26577413,187.88,187.79,40.26577413]
[1734701800778,40.26577413,187.88,187.77,40.26577413]
[1734701801098,18.46077706,187.94,187.77,40.26577413]
[1734701801250,40.26577413,187.96,187.78,0.79879795]
[1734701801449,40.26577413,187.94,187.84,40.26577413]
[1734701801689,40.26577413,187.9,187.78,40.26577413]
[1734701801985,40.26577413,187.84,187.67,3.5193]
[1734701802241,40.26577413,187.78,187.69,40.26577413]
[1734701802394,40.26577413,187.76,187.67,40.26577413]
[1734701802689,40.26577413,187.76,187.65,40.26577413]
[1734701802847,40.26577413,187.74,187.63,40.26577413]
[1734701803051,40.26577413,187.76,187.65,40.26577413]
[1734701803665,40.26577413,187.72,187.63,40.26577413]
[1734701803874,40.26577413,187.68,187.59,40.26577413]
[1734701804298,40.26577413,187.74,187.53,6.625]
[1734701804299,40.26577413,187.76,187.65,40.26577413]
[1734701804793,18.46077706,187.81,187.56,40.26577413]
[1734701804794,40.26577413,187.74,187.63,40.26577413]
[1734701805163,40.26577413,187.72,187.63,40.26577413]
[1734701805496,33.92866632,187.87,187.71,40.26577413]
[1734701805813,40.26577413,187.85,187.73,40.26577413]
[1734701805998,40.26577413,187.83,187.73,40.26577413]
[1734701806403,40.26577413,187.85,187.75,40.26577413]
[1734701807704,40.26577413,187.79,187.69,61.60547213]
[1734701808024,40.26577413,187.83,187.73,40.26577413]
[1734701808519,40.26577413,187.81,187.71,40.26577413]
[1734701808816,40.26577413,187.75,187.65,40.26577413]
[1734701808987,40.26577413,187.71,187.63,21.34758]
[1734701809187,40.26577413,187.73,187.61,40.26577413]
[1734701809422,40.26577413,187.71,187.61,40.26577413]
[1734701809909,40.26577413,187.64,187.52,40.26577413]
[1734701810120,40.26577413,187.64,187.59,21.351789]
[1734701810414,40.26577413,187.66,187.56,40.26577413]
[1734701810599,40.26577413,187.68,187.58,40.26577413]
[1734701811110,40.26577413,187.65,187.54,61.62146513]
[1734701811316,40.26577413,187.67,187.58,40.26577413]
[1734701811789,40.26577413,187.74,187.54,21.355691]
[1734701811790,40.26577413,187.65,187.54,21.355691]
[1734701811998,40.26577413,187.59,187.5,40.26577413]
[1734701812176,40.26577413,187.57,187.46,40.26577413]
[1734701812525,40.26577413,187.57,187.48,40.26577413]
[1734701812680,40.26577413,187.57,187.46,61.62146513]
[1734701812881,40.26577413,187.53,187.46,21.355691]
[1734701813108,40.26577413,187.53,187.42,40.26577413]
[1734701813584,40.26577413,187.51,187.41,21.371045]
[1734701813889,40.26577413,187.51,187.29,43.60527413]
[1734701813890,40.26577413,187.47,187.36,40.26577413]
[1734701814580,40.26577413,187.47,187.34,40.26577413]
[1734701814782,80.53154826,187.47,187.34,40.26577413]
[1734701814981,80.53154826,187.47,187.32,40.26577413]
[1734701815220,40.26577413,187.47,187.34,40.26577413]
[1734701815421,80.53154826,187.47,187.32,40.26577413]
[1734701815740,40.26577413,187.47,187.34,40.26577413]
[1734701815895,40.26577413,187.47,187.36,40.26577413]
[1734701816098,40.26577413,187.47,187.38,40.26577413]
[1734701816486,40.26577413,187.47,187.34,40.26577413]
[1734701816806,18.46077706,187.58,187.38,40.26577413]
[1734701816995,40.26577413,187.51,187.4,40.26577413]
[1734701817199,40.26577413,187.53,187.42,40.26577413]
[1734701817409,40.26577413,187.51,187.42,40.26577413]
[1734701817611,40.26577413,187.55,187.44,40.26577413]
[1734701817807,40.26577413,187.6,187.5,40.26577413]
[1734701818109,40.26577413,187.62,187.52,40.26577413]
[1734701818309,40.26577413,187.58,187.51,20.0]
[1734701818513,40.26577413,187.56,187.51,20.0]
[1734701818730,40.26577413,187.52,187.42,40.26577413]
[1734701819096,40.26577413,187.5,187.4,40.26577413]
[1734701819508,40.26577413,187.52,187.42,40.26577413]
[1734701820289,40.26577413,187.54,187.44,40.26577413]
[1734701820495,40.26577413,187.54,187.47,20.0]
[1734701820725,40.26577413,187.52,187.45,20.7531201]
[1734701820913,40.26577413,187.48,187.45,0.7531201]
[1734701821496,40.26577413,187.5,187.45,0.7531201]
[1734701821704,40.26577413,187.56,187.46,40.26577413]
[1734701822121,40.26577413,187.56,187.45,0.7531201]
[1734701822122,40.26577413,187.52,187.45,20.7531201]
[1734701822327,53.58857413,187.65,187.45,20.7531201]
[1734701822328,40.26577413,187.54,187.45,20.7531201]
[1734701822537,40.26577413,187.5,187.45,0.7531201]
[1734701822742,58.72655119,187.56,187.45,0.7531201]
[1734701822743,40.26577413,187.48,187.45,0.7531201]
[1734701822903,40.26577413,187.46,187.45,0.7531201]
[1734701823407,40.26577413,187.47,187.45,0.7531201]
[1734701823726,18.58626706,187.46,187.45,0.7531201]
[1734701823943,0.12549,187.41,187.26,40.26577413]
[1734701824104,40.26577413,187.32,187.25,22.1441361]
[1734701824305,58.72655119,187.38,187.25,22.1441361]
[1734701824306,40.26577413,187.28,187.25,22.1441361]
[1734701824629,40.26577413,187.32,187.25,0.7531201]
[1734701824809,40.26577413,187.3,187.25,0.7531201]
[1734701825195,40.26577413,187.27,187.25,0.7531201]
[1734701826139,58.72655119,187.26,187.06,40.26577413]
[1734701826340,40.26577413,187.13,187.04,41.01889423]
[1734701826930,40.26577413,187.11,187.04,0.7531201]
[1734701827100,40.26577413,187.13,187.04,41.01889423]
[1734701827431,40.26577413,187.1,187.04,0.7531201]
[1734701827806,40.26577413,187.11,187.04,0.7531201]
[1734701828314,40.26577413,187.07,187.04,0.7531201]
[1734701828544,40.26577413,187.13,187.04,0.7531201]
[1734701828725,40.26577413,187.15,187.04,0.7531201]
[1734701828931,40.26577413,187.13,187.04,0.7531201]
[1734701829741,40.26577413,187.11,187.04,0.7531201]
[1734701830055,40.26577413,187.13,187.04,0.7531201]
[1734701830259,40.26577413,187.13,187.04,41.01889423]
[1734701830764,40.26577413,187.11,187.04,0.7531201]
[1734701830929,40.26577413,187.09,187.04,0.7531201]
[1734701831131,40.26577413,187.13,187.04,0.7531201]
[1734701831365,40.26577413,187.13,187.04,41.01889423]
[1734701831530,40.26577413,187.13,187.04,0.7531201]
[1734701831723,40.26577413,187.09,187.04,0.7531201]
[1734701831924,40.26577413,187.05,187.04,0.7531201]
[1734701832643,40.26577413,187.09,187.04,0.7531201]
[1734701832844,40.26577413,187.15,187.06,40.26577413]
[1734701833060,266.78865657,187.32,187.06,40.26577413]
[1734701833061,6.544,187.35,187.12,40.26577413]
[1734701833237,40.26577413,187.29,187.18,40.26577413]
[1734701833567,40.26577413,187.29,187.11,40.26577413]
[1734701833568,40.26577413,187.35,187.24,40.26577413]
[1734701833874,40.26577413,187.39,187.3,40.26577413]
[1734701834039,40.26577413,187.37,187.28,40.26577413]
[1734701834242,40.26577413,187.33,187.24,40.26577413]
[1734701834429,40.26577413,187.33,187.26,21.390676]
[1734701834632,40.26577413,187.37,187.28,40.26577413]
[1734701834858,40.26577413,187.33,187.25,21.391424]
[1734701835066,40.26577413,187.35,187.25,61.65719813]
[1734701835292,40.26577413,187.33,187.08,3.6592]
[1734701835435,40.26577413,187.31,187.2,40.26577413]
[1734701835773,40.26577413,187.31,187.2,61.66216513]
[1734701836096,40.26577413,187.31,187.2,40.26577413]
[1734701836247,40.26577413,187.35,187.24,40.26577413]
[1734701836447,40.26577413,187.35,187.27,20.0]
[1734701836650,40.26577413,187.35,187.24,40.26577413]
[1734701836949,40.26577413,187.33,187.24,20.0]
[1734701837266,40.26577413,187.33,187.12,0.80099571]
[1734701837267,40.26577413,187.31,187.2,40.26577413]
[1734701837481,40.26577413,187.29,187.19,21.397357]
[1734701837854,40.26577413,187.35,187.24,40.26577413]
[1734701838040,40.26577413,187.43,187.33,40.26577413]
[1734701838245,40.26577413,187.45,187.35,40.26577413]
[1734701838444,40.26577413,187.47,187.37,40.26577413]
[1734701838683,40.26577413,187.47,187.29,41.0662989]
[1734701838684,40.26577413,187.45,187.35,40.26577413]
[1734701838883,40.26577413,187.43,187.33,40.26577413]
[1734701839059,40.26577413,187.39,187.29,40.26577413]
[1734701839261,40.26577413,187.35,187.26,3.5318]
[1734701839483,40.26577413,187.37,187.27,40.26577413]
[1734701839642,18.46077706,187.46,187.27,40.26577413]
[1734701839643,40.26577413,187.39,187.27,40.26577413]
[1734701839869,40.26577413,187.37,187.27,40.26577413]
[1734701840776,40.26577413,187.43,187.31,40.26577413]
[1734701840976,40.26577413,187.48,187.4,20.0]
[1734701841267,18.46077706,187.58,187.41,40.26577413]
[1734701841268,40.26577413,187.52,187.41,40.26577413]
[1734701841770,40.26577413,187.48,187.37,40.26577413]
[1734701841997,40.26577413,187.42,187.33,40.26577413]
[1734701842169,40.26577413,187.42,187.34,20.0]
[1734701842370,40.26577413,187.38,187.29,40.26577413]
[1734701842579,40.26577413,187.38,187.27,40.26577413]
[1734701842912,40.26577413,187.4,187.29,40.26577413]
[1734701843068,40.26577413,187.38,187.27,40.26577413]
[1734701843265,40.26577413,187.36,187.25,40.26577413]
[1734701843679,40.26577413,187.38,187.27,40.26577413]
[1734701844006,53.60157413,187.47,187.29,40.26577413]
[1734701844007,40.26577413,187.41,187.29,40.26577413]
[1734701844172,40.26577413,187.41,187.31,40.26577413]
[1734701844373,40.26577413,187.43,187.33,40.26577413]
[1734701844877,40.26577413,187.43,187.31,40.26577413]
[1734701845313,40.26577413,187.43,187.29,40.26577413]
[1734701845609,40.26577413,187.41,187.31,40.26577413]
[1734701845805,40.26577413,187.37,187.27,40.26577413]
[1734701845974,40.26577413,187.39,187.27,40.26577413]
[1734701846169,40.26577413,187.33,187.22,40.26577413]
[1734701846503,40.26577413,187.31,187.22,40.26577413]
[1734701846681,40.26577413,187.29,187.18,40.26577413]
[1734701846881,40.26577413,187.23,187.14,40.26577413]
[1734701847205,40.26577413,187.25,187.14,40.26577413]
[1734701847446,40.26577413,187.23,187.13,0.4512457]
[1734701847648,40.26577413,187.17,187.13,0.4512457]
[1734701847849,40.26577413,187.29,187.13,0.4512457]
[1734701847850,40.26577413,187.15,187.13,0.4512457]
[1734701848438,0.12549,187.14,187.13,0.4512457]
[1734701848815,0.12549,187.14,186.99,21.423044]
[1734701848816,0.12549,187.09,186.99,21.423044]
[1734701849015,40.26577413,187.09,186.98,40.26577413]
[1734701849427,40.26577413,187.13,187.02,40.26577413]
[1734701850024,40.26577413,187.13,186.97,19.26292348]
[1734701850025,40.26577413,187.09,187.0,40.26577413]
[1734701850252,40.26577413,187.13,187.02,40.26577413]
[1734701850424,40.26577413,187.09,187.0,40.26577413]
[1734701850751,40.26577413,187.07,186.98,40.26577413]
[1734701850956,40.26577413,187.07,186.97,21.425846]
[1734701851337,40.26577413,187.09,187.0,40.26577413]
[1734701851542,40.26577413,187.11,187.0,40.26577413]
[1734701851965,40.26577413,187.09,187.0,40.26577413]
[1734701852152,40.26577413,187.09,186.98,40.26577413]
[1734701852343,40.26577413,187.07,186.98,61.68995113]
[1734701852531,40.26577413,187.05,186.98,21.424177]
[1734701852738,40.26577413,187.11,186.94,40.26577413]
[1734701852739,40.26577413,187.03,186.94,40.26577413]
[1734701853270,18.46077706,187.1,186.94,40.26577413]
[1734701853271,40.26577413,186.97,186.94,21.430441]
[1734701853434,40.26577413,187.02,186.94,21.430441]
[1734701853435,40.26577413,186.95,186.94,21.430441]
[1734701853634,40.26577413,186.95,186.93,0.7367791]
[1734701855470,58.72655119,186.95,186.93,0.7367791]
[1734701855676,0.12549,186.94,186.93,0.7367791]
[1734701855834,0.12549,186.87,186.79,21.445816]
[1734701856043,40.26577413,186.81,186.71,40.26577413]
[1734701856363,40.26577413,186.79,186.69,40.26577413]
[1734701856547,40.26577413,186.75,186.68,20.0]
[1734701856866,20.0,186.72,186.39,51.32199204]
[1734701857074,20.0,186.72,186.52,40.26577413]
[1734701857075,40.26577413,186.61,186.52,40.26577413]
[1734701857784,40.26577413,186.65,186.56,40.26577413]
[1734701857952,40.26577413,186.68,186.58,40.26577413]
[1734701858276,40.26577413,186.66,186.56,40.26577413]
[1734701858454,40.26577413,186.66,186.57,21.469512]
[1734701858653,40.26577413,186.64,186.54,90.44203699]
[1734701858982,40.26577413,186.68,186.58,40.26577413]
[1734701859273,40.26577413,186.72,186.62,40.26577413]
[1734701859777,40.26577413,186.7,186.6,40.26577413]
[1734701860293,40.26577413,186.66,186.56,40.26577413]
[1734701860450,40.26577413,186.64,186.54,90.44203699]
[1734701860785,40.26577413,186.66,186.56,40.26577413]
[1734701860987,40.26577413,186.72,186.62,40.26577413]
[1734701861280,40.26577413,186.78,186.68,40.26577413]
[1734701862762,18.46077706,186.92,186.74,40.26577413]
[1734701862966,40.26577413,186.86,186.76,40.26577413]
[1734701863290,40.26577413,186.93,186.7,0.12549]
[1734701863291,40.26577413,186.88,186.78,40.26577413]
[1734701863870,40.26577413,186.84,186.74,40.26577413]
[1734701864081,40.26577413,186.82,186.72,40.26577413]
[1734701864280,40.26577413,186.84,186.74,40.26577413]
[1734701864484,40.26577413,186.86,186.76,40.26577413]
[1734701864783,40.26577413,186.9,186.8,40.26577413]
[1734701864957,40.26577413,186.92,186.82,40.26577413]
[1734701865371,40.26577413,186.88,186.78,40.26577413]
[1734701865550,40.26577413,186.86,186.76,60.26577413]
[1734701865749,40.26577413,186.86,186.76,40.26577413]
[1734701866405,40.26577413,186.88,186.78,40.26577413]
[1734701866865,53.67300777,187.04,186.82,40.26577413]
[1734701866866,40.26577413,186.92,186.82,40.26577413]
[1734701867287,40.26577413,186.9,186.78,20.0]
[1734701867473,40.26577413,186.9,186.8,40.26577413]
[1734701867794,40.26577413,186.85,186.74,40.26577413]
[1734701867975,40.26577413,186.85,186.76,40.26577413]
[1734701868308,40.26577413,186.85,186.74,40.26577413]
[1734701868794,40.26577413,186.83,186.72,40.26577413]
[1734701868964,40.26577413,186.83,186.74,40.26577413]
[1734701869288,40.26577413,186.93,186.59,0.8032008]
[1734701869289,40.26577413,186.81,186.72,40.26577413]
[1734701869501,40.26577413,186.8,186.69,40.26577413]
[1734701869788,40.26577413,186.82,186.71,40.26577413]
[1734701869965,40.26577413,186.82,186.73,40.26577413]
[1734701870163,40.26577413,186.8,186.7,40.26577413]
[1734701870692,40.26577413,186.78,186.68,40.26577413]
[1734701871071,40.26577413,186.74,186.64,40.26577413]
[1734701871270,40.26577413,186.74,186.62,40.26577413]
[1734701871579,40.26577413,186.7,186.6,40.26577413]
[1734701871791,40.26577413,186.68,186.58,40.26577413]
[1734701871965,40.26577413,186.62,186.54,40.26577413]
[1734701872165,40.26577413,186.62,186.52,21.477206]
[1734701872462,40.26577413,186.58,186.47,40.26577413]
[1734701872666,40.26577413,186.56,186.47,40.26577413]
[1734701872890,40.26577413,186.58,186.49,40.26577413]
[1734701873400,40.26577413,186.62,186.51,40.26577413]
[1734701874093,40.26577413,186.64,186.55,40.26577413]
[1734701874279,40.26577413,186.66,186.57,40.26577413]
[1734701874474,40.26577413,186.7,186.61,40.26577413]
[1734701874679,40.26577413,186.66,186.57,40.26577413]
[1734701874880,40.26577413,186.66,186.48,40.26577413]
[1734701875086,40.26577413,186.64,186.56,20.0]
[1734701875272,40.26577413,186.64,186.55,40.26577413]
[1734701875870,40.26577413,186.62,186.53,41.00255323]
[1734701876106,40.26577413,186.64,186.55,40.26577413]
[1734701876400,40.26577413,186.66,186.55,40.26577413]
[1734701876588,40.26577413,186.64,186.55,40.26577413]
[1734701876792,40.26577413,186.66,186.55,40.26577413]
[1734701877005,40.26577413,186.66,186.57,40.26577413]
[1734701877374,46.82757413,186.75,186.59,40.26577413]
[1734701877375,40.26577413,186.7,186.59,40.26577413]
[1734701877579,40.26577413,186.69,186.53,21.54070171]
[1734701877908,18.46077706,186.79,186.62,40.26577413]
[1734701878222,40.26577413,186.74,186.62,40.26577413]
[1734701878574,40.26577413,186.68,186.53,20.7367791]
[1734701878779,40.26577413,186.66,186.56,40.26577413]
[1734701878997,18.46077706,186.73,186.53,20.7367791]
[1734701878998,40.26577413,186.64,186.54,40.26577413]
[1734701879207,40.26577413,186.62,186.53,0.7367791]
[1734701879711,40.26577413,186.6,186.53,0.7367791]
[1734701880203,40.26577413,186.66,186.56,40.26577413]
[1734701880408,6.0677,186.65,186.53,0.7367791]
[1734701880578,40.39126413,186.54,186.53,0.7367791]
[1734701881311,40.26577413,186.45,186.36,1.2686]
[1734701881611,40.26577413,186.43,186.36,1.2686]
[1734701881905,40.26577413,186.49,186.39,40.26577413]
[1734701882105,40.26577413,186.49,186.37,40.26577413]
[1734701882271,40.26577413,186.45,186.36,1.2686]
[1734701882475,40.26577413,186.49,186.37,40.26577413]
[1734701882794,40.26577413,186.49,186.36,1.8462643]
[1734701882795,40.26577413,186.49,186.39,40.26577413]
[1734701883172,40.26577413,186.49,186.37,40.26577413]
[1734701883396,40.26577413,186.45,186.36,1.8462643]
[1734701883595,40.26577413,186.45,186.36,42.11203843]
[1734701883799,40.26577413,186.53,186.42,40.26577413]
[1734701884307,40.26577413,186.45,186.37,21.489172]
[1734701884607,7.78773347,186.61,186.36,42.11203843]
[1734701884608,40.26577413,186.39,186.36,1.8462643]
[1734701884778,40.26577413,186.37,186.36,1.8462643]
[1734701884983,40.39126413,186.37,186.36,1.8462643]
[1734701885203,40.26577413,186.37,186.36,1.8462643]
[1734701885413,40.26577413,186.37,186.23,0.28687493]
[1734701885708,40.26577413,186.27,186.23,0.28687493]
[1734701886109,40.26577413,186.25,186.23,0.28687493]
[1734701886679,40.26577413,186.29,186.23,0.28687493]
[1734701886904,40.26577413,186.31,186.23,0.28687493]
[1734701887283,40.26577413,186.29,186.23,0.28687493]
[1734701887479,40.26577413,186.27,186.23,0.28687493]
[1734701887704,40.26577413,186.29,186.23,0.28687493]
[1734701888010,40.26577413,186.27,186.23,0.28687493]
[1734701888313,40.26577413,186.29,186.23,0.28687493]
[1734701888479,40.26577413,186.31,186.23,0.28687493]
[1734701889083,40.26577413,186.25,186.23,0.28687493]
[1734701890724,20.0,186.31,186.23,0.28687493]
[1734701890893,40.26577413,186.26,186.23,0.28687493]
[1734701891084,40.26577413,186.28,186.23,0.28687493]
[1734701891285,40.26577413,186.3,186.23,0.28687493]
[1734701891521,40.26577413,186.34,186.24,20.0]
[1734701891823,40.26577413,186.42,186.31,40.26577413]
[1734701892194,40.26577413,186.42,186.28,20.80490393]
[1734701892195,40.26577413,186.4,186.29,40.26577413]
[1734701892390,40.26577413,186.34,186.25,40.26577413]
[1734701892594,40.26577413,186.34,186.23,0.28687493]
[1734701892595,40.26577413,186.34,186.26,20.0]
[1734701892817,40.26577413,186.32,186.24,20.0]
[1734701893027,40.26577413,186.34,186.25,40.26577413]
[1734701893197,40.26577413,186.39,186.23,0.28687493]
[1734701893198,40.26577413,186.3,186.23,0.28687493]
[1734701893399,40.26577413,186.28,186.23,0.28687493]
[1734701893923,40.26577413,186.32,186.23,40.55264906]
[1734701894122,40.26577413,186.34,186.25,40.26577413]
[1734701894419,40.26577413,186.32,186.23,0.28687493]
[1734701894625,40.26577413,186.3,186.23,0.28687493]
[1734701894791,40.26577413,186.26,186.23,0.28687493]
[1734701895506,40.26577413,186.32,186.23,0.28687493]
[1734701895897,40.26577413,186.3,186.25,5.0]
[1734701896100,40.26577413,186.32,186.25,5.0]
[1734701896315,40.26577413,186.36,186.25,5.0]
[1734701896521,40.26577413,186.38,186.28,40.26577413]
[1734701896700,40.26577413,186.38,186.26,40.26577413]
[1734701896894,40.26577413,186.36,186.26,60.26577413]
[1734701897090,40.26577413,186.34,186.25,5.0]
[1734701897290,40.26577413,186.38,186.27,40.26577413]
[1734701897522,40.26577413,186.44,186.34,40.26577413]
[1734701897828,40.26577413,186.48,186.38,40.26577413]
[1734701897998,40.26577413,186.46,186.36,40.26577413]
[1734701898519,40.26577413,186.42,186.32,40.26577413]
[1734701898718,40.26577413,186.44,186.34,40.26577413]
[1734701898895,18.46077706,186.53,186.36,40.26577413]
[1734701898896,40.26577413,186.46,186.36,40.26577413]
[1734701899394,40.26577413,186.44,186.34,40.26577413]
[1734701899598,40.26577413,186.4,186.31,3.5392]
[1734701900027,40.26577413,186.32,186.21,43.68537413]
[1734701900337,40.26577413,186.28,186.17,60.26577413]
[1734701900627,18.46077706,186.39,186.23,40.55264906]
[1734701900817,40.26577413,186.31,186.23,0.28687493]
[1734701901123,40.26577413,186.29,186.23,0.28687493]
[1734701901325,40.26577413,186.31,186.23,0.28687493]
[1734701901509,40.26577413,186.29,186.23,0.28687493]
[1734701901706,40.26577413,186.27,186.23,0.28687493]
[1734701902097,40.26577413,186.29,186.23,0.28687493]
[1734701902305,40.26577413,186.27,186.23,0.28687493]
[1734701902705,40.26577413,186.29,186.23,0.28687493]
[1734701903027,40.26577413,186.33,186.23,40.55264906]
[1734701903327,40.26577413,186.31,186.23,0.28687493]
[1734701903637,3.48605285,186.3,186.23,0.28687493]
[1734701903839,3.48605285,186.3,186.23,40.55264906]
[1734701904204,40.26577413,186.35,186.25,45.26577413]
[1734701904433,40.26577413,186.37,186.27,40.26577413]
[1734701904737,40.26577413,186.33,186.25,5.0]
[1734701905028,40.26577413,186.35,186.25,45.26577413]
[1734701905401,18.46077706,186.48,186.3,20.0]
[1734701905605,40.26577413,186.42,186.33,40.26577413]
[1734701905805,40.26577413,186.46,186.35,40.26577413]
[1734701906019,40.26577413,186.44,186.33,40.26577413]
[1734701906237,40.26577413,186.4,186.29,40.26577413]
[1734701906408,40.26577413,186.38,186.27,43.61137413]
[1734701906808,40.26577413,186.36,186.27,43.61137413]
[1734701907118,40.26577413,186.36,186.27,3.3456]
[1734701907516,13.4092,186.44,186.27,3.3456]
[1734701907517,18.46077706,186.5,186.34,40.26577413]
[1734701907724,40.26577413,186.44,186.34,40.26577413]
[1734701908041,40.26577413,186.42,186.32,40.26577413]
[1734701908245,40.26577413,186.38,186.28,40.26577413]
[1734701908551,40.26577413,186.4,186.28,40.26577413]
[1734701908840,40.26577413,186.38,186.28,40.26577413]
[1734701909012,40.26577413,186.36,186.26,40.26577413]
[1734701909213,40.26577413,186.38,186.28,40.26577413]
[1734701909432,3.36331108,186.37,186.28,40.26577413]
[1734701909636,40.26577413,186.36,186.26,40.26577413]
[1734701909956,40.26577413,186.38,186.28,40.26577413]
[1734701910110,40.26577413,186.42,186.32,40.26577413]
[1734701910449,40.26577413,186.38,186.28,40.26577413]
[1734701910937,40.26577413,186.36,186.26,40.26577413]
[1734701911145,40.26577413,186.38,186.28,40.26577413]
[1734701911361,3.37053962,186.41,186.32,40.26577413]
[1734701911539,40.26577413,186.4,186.3,40.26577413]
[1734701911746,3.37053962,186.39,186.3,40.26577413]
[1734701912554,40.26577413,186.4,186.3,40.26577413]
[1734701912555,3.37053962,186.38,186.3,40.26577413]
[1734701912728,43.63631375,186.38,186.28,40.26577413]
[1734701912929,40.26577413,186.44,186.34,40.26577413]
[1734701913243,10.14442123,186.47,186.36,40.26577413]
[1734701913244,40.26577413,186.46,186.36,40.26577413]
[1734701913443,10.14442123,186.47,186.34,40.26577413]
[1734701913444,40.26577413,186.44,186.34,40.26577413]
[1734701913760,40.26577413,186.42,186.32,40.26577413]
[1734701913962,3.38495547,186.43,186.36,40.26577413]
[1734701914148,3.38495547,186.43,186.37,40.26577413]
[1734701914332,3.38495547,186.42,186.37,40.26577413]
[1734701914529,3.38495547,186.42,186.33,60.26577413]
[1734701914737,3.38495547,186.42,186.35,40.26577413]
[1734701914944,3.38495547,186.41,186.35,40.26577413]
[1734701915564,3.38495547,186.4,186.35,40.26577413]
[1734701915731,3.38495547,186.4,186.39,40.26577413]
[1734701916069,40.26577413,186.48,186.37,40.26577413]
[1734701916358,3.38925829,186.47,186.37,40.26577413]
[1734701916558,3.38925829,186.47,186.39,40.26577413]
[1734701916764,3.38925829,186.46,186.39,40.26577413]
[1734701916967,3.38925829,186.46,186.45,40.26577413]
[1734701917129,10.14442123,186.55,186.48,20.0]
[1734701917336,10.14442123,186.55,186.53,40.26577413]
[1734701917662,40.26577413,186.64,186.49,40.26577413]
[1734701917663,40.26577413,186.58,186.49,40.26577413]
[1734701917960,40.26577413,186.58,186.46,20.0]
[1734701917961,40.26577413,186.6,186.51,40.26577413]
[1734701918161,40.26577413,186.64,186.53,40.26577413]
[1734701918343,18.46077706,186.72,186.55,40.26577413]
[1734701918551,40.26577413,186.69,186.59,40.26577413]
[1734701919466,40.26577413,186.73,186.63,40.26577413]
[1734701919636,40.26577413,186.67,186.57,40.26577413]
[1734701919837,40.26577413,186.65,186.55,40.26577413]
[1734701920138,18.46077706,186.68,186.39,40.26577413]
[1734701920139,40.26577413,186.59,186.49,40.26577413]
[1734701920339,40.26577413,186.55,186.45,40.26577413]
[1734701920653,18.46077706,186.62,186.47,40.26577413]
[1734701920843,40.26577413,186.59,186.49,40.26577413]
[1734701921051,58.72655119,186.62,186.52,40.26577413]
[1734701921362,40.26577413,186.62,186.52,40.26577413]
[1734701921541,40.26577413,186.64,186.54,40.26577413]
[1734701922245,40.26577413,186.62,186.54,40.26577413]
[1734701922452,40.26577413,186.64,186.54,40.26577413]
[1734701922758,40.26577413,186.68,186.58,40.26577413]
[1734701923066,53.36129559,186.83,186.51,20.0]
[1734701923067,18.46077706,186.82,186.66,40.26577413]
[1734701923237,40.26577413,186.78,186.68,40.26577413]
[1734701923675,40.26577413,186.82,186.72,40.26577413]
[1734701923848,40.26577413,186.84,186.74,40.26577413]
[1734701924363,40.26577413,186.84,186.66,40.26577413]
[1734701924364,40.26577413,186.77,186.6,0.80323552]
[1734701924662,40.26577413,186.77,186.68,40.26577413]
[1734701925248,40.26577413,186.77,186.57,41.06929624]
[1734701925249,40.26577413,186.81,186.72,40.26577413]
[1734701925450,40.26577413,186.83,186.72,40.26577413]
[1734701925967,18.46077706,186.84,186.59,0.80326859]
[1734701925968,40.26577413,186.79,186.7,40.26577413]
[1734701926172,40.26577413,186.81,186.72,40.26577413]
[1734701926483,40.26577413,186.85,186.76,40.26577413]
[1734701926982,40.26577413,186.87,186.76,40.26577413]
[1734701927267,40.26577413,186.89,186.8,40.26577413]
[1734701927477,41.07213983,186.91,186.82,40.26577413]
[1734701927851,41.07213983,186.91,186.75,40.26577413]
[1734701927852,40.26577413,186.89,186.8,40.26577413]
[1734701928039,41.07213983,186.91,186.82,40.26577413]
[1734701928379,41.07213983,186.91,186.84,40.26577413]
[1734701928380,0.8063657,186.91,186.84,40.26577413]
[1734701928564,41.07213983,186.91,186.82,40.26577413]
[1734701928748,0.8063657,186.91,186.84,40.26577413]
[1734701928953,0.8063657,186.91,186.86,40.26577413]
[1734701929552,0.8063657,186.91,186.9,40.26577413]
[1734701930351,0.8063657,186.91,186.88,40.26577413]
[1734701930559,0.8063657,186.91,186.86,40.26577413]
[1734701931341,0.8063657,186.91,186.77,0.80247355]
[1734701931342,0.8063657,186.91,186.77,0.12549]
[1734701931544,0.8063657,186.91,186.89,40.26577413]
[1734701932573,0.8063657,186.91,186.85,40.26577413]
[1734701932770,0.8063657,186.91,186.82,13.3815]
[1734701932771,0.8063657,186.91,186.9,40.26577413]
[1734701933664,40.26577413,187.1,186.91,0.12549]
[1734701933873,0.8063657,187.13,187.03,40.26577413]
[1734701934063,40.26577413,187.12,187.03,40.26577413]
[1734701934670,0.8063657,187.13,187.07,40.26577413]
[1734701935185,0.8063657,187.13,187.05,40.26577413]
[1734701935186,41.07213983,187.13,187.05,40.26577413]
[1734701935480,0.8063657,187.13,187.05,40.26577413]